{"text_format":"1","workbook":"xlsx","n_sheets":2,"sheets":["PLANTILLA","Instrucciones"],"not_rendered":{"charts":0,"images":1,"macros":1,"external_links":0,"defined_names":1,"comments":0,"pivot_tables":0},"unopened":[],"bounds":{"document_bytes":16777216,"sheet_cells":100000,"rows_first":2000,"rows_last":500,"rows_between":2000,"halvings":0,"cell_chars":16384,"cell_head_chars":4096},"cells_cut":0,"cells_raw":0,"read":"whole","date_system":"1900"}

{"sheet":"PLANTILLA","index":0,"n_rows":139,"n_cols":7,"rows_kept":139,"cut":false,"hidden":false,"merged":[[1,3,1,6],[4,2,4,5],[5,3,5,5],[6,1,6,2],[6,4,6,5],[2,3,2,6]]}
[]
[null,"PRESUPUESTO DE SOLICITUD",null,"VÉASE HOJA DE INSTRUCCIONES"]
[null,{"$f":"IF(B9=0,\" \",B9)","v":"CURSO 2025-26"},null,"RELLENE SÓLO LOS CAMPOS SOMBREADOS EN NARANJA que proceda"]
[]
["Denominación estudio"]
["núm. UP ",null,"Denominación UP"]
["Director/a 1 ",null,null,"Director/a 2"]
["Fecha de inicio",null,null,"Fecha fin"]
["Curso académico","CURSO 2025-26"]
["Código / TCS",null,null,null,null,"Tipo Docencia"]
["CREDITOS",null,null,null,null,"híbrida"]
[]
["INGRESOS"]
["CAPÍTULO III",null,null,"Num alumnos","Importe/alumno","Total","Observaciones y justificación: origen de ingresos, reducción de matrícula y canon correspondiente, en su caso"]
[null,"Matricula general",null,null,null,{"$f":"D15*E15","v":0}]
[null,"Matrícula reducida (justificar)",null,null,null,{"$f":"D16*E16","v":0}]
[null,"Otros ingresos 1 / canon reducido",null,{"$f":"IF(F17>0,D15+D16,0)","v":0},{"$f":"IFERROR(IF(D17<D15,0,F17/D17),\"\")","v":""}]
[null,"Otros ingresos 2 / canon regular",null,{"$f":"IF(F18>0,D15+D16,0)","v":0},{"$f":"IFERROR(IF(D18<D15,0,F18/D18),\"\")","v":""}]
[null,"TASA certificación",null,null,{"$f":"IFERROR(MAX(MIN(ROUNDUP(((1+(E24*0.01))*B11),0),75),10),\"\")","v":""},{"$f":"IFERROR(D15*E19,\"\")","v":""}]
[]
[null,"TOTAL A PAGAR POR EL ALUMNO (con tasa)",null,null,{"$f":"IFERROR(E15+E19,\"\")","v":""},"LOS PRECIOS A COMUNICAR AL ALUMNO SON LOS QUE ESTÁN EN ROJO"]
[null,"TOTAL A PAGAR POR EL ALUMNO con matrícula REDUCIDA (con tasa)",null,null,{"$f":"IFERROR(E16+E19,\"\")","v":""}]
[null,null,null,null,null,{"$f":"F15+F16+F18","v":0},"Total ingresos para cálculo de canon general"]
[null,"TOTAL precio curso SIN tasa (dato para calculo de tasa)",null,null,{"$f":"IFERROR((E15+E17+E18),\"\")","v":""},{"$f":"SUM(F15:F18)","v":0},"Total INGRESOS y para autofinanciacion"]
[]
["GASTOS "]
["Capítulo I  PERSONAL- NORMATIVA ",null,"https://academico.unizar.es/sites/academico/files/webform/resolucion_compensaciones_economicas.pdf "]
["Actividad/horas profesorado UNIZAR"]
["Nombre"," ","Tipo docencia","Cantidad horas","Importe euros","Total","Observaciones"]
["Nombre 1",null,null,null,null,{"$f":"D30*E30","v":0}]
["Nombre 2",null,null,null,null,0]
["Nombre 3",null,null,null,null,0]
["Nombre 4",null,null,null,null,0]
[]
[null,null,null,null,"TOTAL Importes",{"$f":"SUM(F30:F33)","v":0}]
[]
["Profesorado NO UNIZAR"]
["Nombre"," ","Tipo docencia","Cantidad horas","Importe euros","Total","Observaciones"]
["Nombre 1",null,null,null,null,{"$f":"D39*E39","v":0}]
["Nombre 2",null,null,null,null,{"$f":"D40*E40","v":0}]
["Nombre 3",null,null,null,null,0]
[null,null,null,null,"TOTAL Importes",{"$f":"SUM(F39:F41)","v":0}]
[]
["Personal de Administración y Servicios   "]
["Nombre","Descripción tareas","  ","Cantidad horas","Importe euros","Total","Observaciones"]
["Nombre 1",null,null,null,null,{"$f":"D46*E46","v":0}]
["Nombre 2",null,null,null,null,{"$f":"D47*E47","v":0}]
[]
[null,null,null,null,"TOTAL importes",{"$f":"SUM(F46)","v":0}]
[]
["Retribuciones Dirección del  Estudio (UN director/a UNIZAR obligatorio. Total máximo dos, salvo convenios específicos)"]
["Nombre","  ","Empresa/institución","Cantidad créditos","Importe ","Total","Observaciones"]
["Nombre 1 Dir UNIZAR",null,"UNIZAR",null,null,{"$f":"D53*E53","v":0}]
["Nombre 2 Dir UNIZAR",null,"UNIZAR",null,null,{"$f":"D54*E54","v":0}]
["Nombre 1 NO UNIZAR",null,null,null,null,{"$f":"D55*E55","v":0}]
["Nombre 2 NO UNIZAR",null,null,null,null,{"$f":"D56*E56","v":0}]
[]
[null,null,null,null,"TOTAL ",{"$f":"SUM(F53:F56)","v":0}]
[null,null,null,null,"TOTAL UNIZAR",{"$f":"F53+F54","v":0}]
[]
["Otro personal "]
["Nombre","Concepto servicio","  "," ","Importe ","Total","Observaciones"]
["Nombre 1",null,null,null,null,{"$f":"PRODUCT(D63,E63)","v":0}]
["Nombre 2",null,null,null,null,{"$f":"PRODUCT(D64,E64)","v":0}]
[]
[null,null,null,null,"TOTAL importes",{"$f":"SUM(F63)","v":0}]
[]
["PREVISIONES Gastos Seguridad Social (Patronal profesorado UNIZAR)- %SS: véase HOJA  Instrucciones"]
["Nombre","  ","¿Cotiza? SI/NO","Importe ","% SS","Cuota patronal","Observaciones"]
[{"$f":"A30","v":"Nombre 1"},null,null,{"$f":"F30","v":0},null,{"$f":"IF(C70=\"SÍ\",D70*E70,IF(D6=\"NO\",0,\"debe seleccionar cotización SÍ/NO\"))","v":"debe seleccionar cotización SÍ/NO"}]
[{"$f":"A31","v":"Nombre 2"},null,null,0,null,{"$f":"IF(C71=\"SÍ\",D71*E71,IF(D7=\"NO\",0,\"debe seleccionar cotización SÍ/NO\"))","v":"debe seleccionar cotización SÍ/NO"}]
["Nombre 3",null,null,0,null,{"$f":"IF(C72=\"SÍ\",D72*E72,IF(D8=\"NO\",0,\"debe seleccionar cotización SÍ/NO\"))","v":"debe seleccionar cotización SÍ/NO"}]
["Nombre 4",null,null,0,null,{"$f":"IF(C73=\"SÍ\",D73*E73,IF(D9=\"NO\",0,\"debe seleccionar cotización SÍ/NO\"))","v":"debe seleccionar cotización SÍ/NO"}]
[]
[null,null,null,null,"TOTAL Patronal prof",{"$f":"SUM(F70:F73)","v":0}]
[]
["PREVISIONES Gastos Seguridad Social (Patronal Dirección Unizar)  %SS: véase HOJA  Instrucciones"]
["Nombre","  ","¿Cotiza? SI/NO","Importe ","% SS","Cuota patronal","Observaciones"]
[{"$f":"A53","v":"Nombre 1 Dir UNIZAR"},null,null,{"$f":"F53","v":0},null,{"$f":"IF(C79=\"SÍ\",D79*E79,IF(D15=\"NO\",0,\"debe seleccionar cotización SÍ/NO\"))","v":"debe seleccionar cotización SÍ/NO"}]
[{"$f":"A54","v":"Nombre 2 Dir UNIZAR"},null,null,{"$f":"F54","v":0},null,{"$f":"IF(C80=\"SÍ\",D80*E80,IF(D16=\"NO\",0,\"debe seleccionar cotización SÍ/NO\"))","v":"debe seleccionar cotización SÍ/NO"}]
[]
[null,null,null,null,"TOTAL Patronal Direcc",{"$f":"SUM(F79:F80)","v":0}]
[]
["Capítulo II"]
["Gastos corrientes"]
["Dietas","espedifique",null,null,null,"Importe","Observaciones"]
["Nombre receptor 1"]
["Nombre receptor 2"]
[]
[null,null,null,null,"TOTAL",{"$f":"SUM(F87:F88)","v":0}]
[]
["Desplazamientos","especifique",null,null,null,"Importe","Obervaciones"]
["Nombre receptor 1"]
["Nombre receptor 2"]
[]
[null,null,null,null,"TOTAL",{"$f":"SUM(F93:F94)","v":0}]
[]
["Material Fungible",null,null,null,null,"Importe","Observaciones"]
["Concepto 1"]
["Concepto 2"]
[]
[null,null,null,null,"TOTAL",{"$f":"SUM(Tabla13[[#All],[Columna5]])","v":0}]
[]
["Otros gastos corrientes",null,null,null,null,"Importe","Observaciones"]
["Otros gastos ","(máximo el 5% de Total Gastos, según reglamento)",null,null,null,null,{"$f":"\"   máximo = \"&C132*0.05","v":"   máximo = 0"}]
[{"$f":"IF(F11=\"virtual\",\"seguro NO\",\"seguro SÍ\")","v":"seguro SÍ"},{"$f":"IF(Tabla5[[#This Row],[Columna1]]=\"seguro Sí\",\"seguro para \"&(D15+D16)&\" alumnos a 5 €/alumno\",\"\")","v":"seguro para 0 alumnos a 5 €/alumno"},null,"¿Se excepciona?",null,{"$f":"IF(Tabla5[[#This Row],[Columna1]]=\"seguro SÍ\",IF(Tabla5[[#This Row],[Columna5]]<>\"Sí ya tienen seguro\",5*(D15+D16),0),\"\")","v":0}]
["Otros Conceptos"]
[]
[null,null,null,null,"TOTAL",{"$f":"F105+SUM(Tabla5[[#All],[Columna6]])","v":0}]
[]
["Capítulo IV"]
["Inversiones Reales  (EN PLAN MICROCREDS EXCLUSIVAMENTE JUSTIFICANDO NECESIDAD para impartir la microcrdencial- PARTIDA ACTIVIDADES INSTRUMENTALES)"]
["Descripción",null,null,"Cantidad","Importe","Total","Observaciones"]
["Mobiliario",null,null,null,null,{"$f":"PRODUCT(D114,E114)","v":0}]
["E. Informático",null,null,null,null,{"$f":"PRODUCT(D115,E115)","v":0}]
["Otras invers.",null,null,null,null,{"$f":"PRODUCT(D116,E116)","v":0}]
[null,null,null,null,"TOTAL",{"$f":"SUM(F114:F116)","v":0}]
[]
["Canon y gestión",null,"%","Importe"]
["  - canon ordinario ",null,0.21,{"$f":"C120*F23","v":0}]
["  - canon \"Otros ingresos canon reducido\"",null,0,{"$f":"C121*F17","v":0}]
["Total canon",null,null,{"$f":"SUM(D120:D121)","v":0}]
["FEUZ / UNIVERSA ",null,{"$f":"IF(B123=\"SÍ\",0.05,0)","v":0},{"$f":"F24*C123","v":0}]
[null,null,"TOTAL",{"$f":"SUM(D122:D123)","v":0}]
[]
["RESUMEN"]
["Total Ingresos Brutos sin tasa",null,{"$f":"F24","v":0}]
["Total Cánon + FEUZ/UNIVERSA",null,{"$f":"D124","v":0}]
[]
[]
["Total Ingresos Netos",null,{"$f":"C127-C128","v":0}]
["Total Gastos ",null,{"$f":"F35+F42+F49+F58+F75+F66+F82+F90+F96+F109+F102+F117","v":0}]
["Resultado Final",null,{"$f":"C131-C132","v":0},"DEBE SER CERO"]
[]
["OBSERVACIONES FINAL"]
[]
[]
[]
["Firma Director / Directora de la microcredencial y fecha"]

{"sheet":"Instrucciones","index":1,"n_rows":17,"n_cols":7,"rows_kept":17,"cut":false,"hidden":false,"merged":[[4,1,4,7]]}
[]
[null,"El importe del precio de la matrícula deber ser el que haga que el estudio se AUTOFINANCIE"]
[]
[null,"Capítulo I  NORMATIVA REMUNERACIONES"]
[null,"https://academico.unizar.es/sites/academico/files/webform/resolucion_compensaciones_economicas.pdf "]
[]
[null,"Consígnese en los campos Observaciones u OBSERVACIONES FINAL lo que corresponda, en caso de:"]
[null,"  - Imputar remuneraciones excepcionales previamente aprobadas por el Equipo de Gobierno"]
[null," - Imputar remuneraciones con aumento hasta el 30% por directo o grabación de las sesiones "]
[null,"(en este caso las grabaciones deben quedar disponibles en abierto en repositorio institucional)"]
[]
[]
[null,"Porcentajes orientativos para el cálculo del % de SS (Patronal) 2025"]
[null,"PDI funcionario ANTERIOR a 1 enero 2011 - MUFACE ","PDI funcionario posterior a 1 de enero de 2011 (No MUFACE) ","Contratado laboral indefinido, contratado doctor, en prácticas, interinidad, sustitución, asociados, PTGAS laboral  ","Contratado laboral duración determinada, personal investigador, ayudante, Ramon y Cajal, Juan de la Cierva   ","Contratos duración determinada bonificados . ","Programas de formación  "]
[null,"MUFACE - No cotiza Seguridad Social","23,49%","32,07%","33,27%","33,18%     Contratos predoctorales antes 1 sep 2023 26,19%. Desde 1 sep 2023 33,27% con  bonificación  única 115 eruos.","5,77%"]
[null,"PTGAS funcionario de carrera ","PTGAS funcionario interino  "]
[null,"26,28%","31,78%"]